fUSD/lending_fUSD_20250309
["ID","MTS","AMOUNT","RATE_DAILY","PERIOD"]
[355738283,1741521036261,-237.821055,9.11e-05,2]
[355738284,1741521036270,-237.821055,9.11e-05,2]
[355738285,1741521036280,-151.0,9.11e-05,2]
[355738286,1741521036289,-151.0,9.11e-05,2]
[355738287,1741521036299,-237.821055,9.11e-05,2]
[355738288,1741521036308,-151.0,9.11e-05,2]
[355738289,1741521036318,-237.821055,9.11e-05,2]
[355738290,1741521036328,-151.0,9.11e-05,2]
[355738291,1741521036337,-151.0,9.11e-05,2]
[355738292,1741521036347,-237.821055,9.11e-05,2]
[355738293,1741521036357,-237.821055,9.11e-05,2]
[355738294,1741521036367,-215.468696,9.11e-05,2]
[355738295,1741521036377,-237.821055,9.11e-05,2]
[355738296,1741521036386,-237.821055,9.11e-05,2]
[355738297,1741521036395,-151.0,9.11e-05,2]
[355738298,1741521036405,-237.821055,9.11e-05,2]
[355738299,1741521036414,-151.0,9.11e-05,2]
[355738300,1741521036423,-151.0,9.11e-05,2]
[355738301,1741521036433,-151.0,9.11e-05,2]
[355738302,1741521036443,-151.0,9.11e-05,2]
[355738303,1741521036452,-151.0,9.11e-05,2]
[355738304,1741521036462,-208.513293,9.11e-05,2]
[355738305,1741521036472,-151.0,9.11e-05,2]
[355738306,1741521036481,-151.0,9.11e-05,2]
[355738307,1741521036491,-151.0,9.11e-05,2]
[355738308,1741521036500,-151.0,9.11e-05,2]
[355738309,1741521036510,-151.0,9.11e-05,2]
[355738310,1741521036520,-151.0,9.11e-05,2]
[355738311,1741521036530,-151.0,9.11e-05,2]
[355738312,1741521036539,-231.557471,9.11e-05,2]
[355738313,1741521036549,-300.008304,9.11e-05,2]
[355738314,1741521036560,-310.081406,9.11e-05,2]
[355738315,1741521036569,-310.081406,9.11e-05,2]
[355738316,1741521036579,-151.0,9.11e-05,2]
[355738317,1741521036589,-310.081406,9.11e-05,2]
[355738318,1741521036598,-151.0,9.11e-05,2]
[355738319,1741521036608,-310.081406,9.11e-05,2]
[355738320,1741521036617,-151.0,9.11e-05,2]
[355738321,1741521036627,-310.081406,9.11e-05,2]
[355738322,1741521036637,-151.0,9.11e-05,2]
[355738323,1741521036646,-151.0,9.11e-05,2]
[355738324,1741521036656,-310.081406,9.11e-05,2]
[355738325,1741521036671,-310.081406,9.11e-05,2]
[355738326,1741521036680,-310.081406,9.11e-05,2]
[355738327,1741521036690,-310.081406,9.11e-05,2]
[355738328,1741521036700,-310.081406,9.11e-05,2]
[355738329,1741521036711,-10000.0,9.11e-05,2]
[355738330,1741521036723,-10000.0,9.11e-05,2]
[355738331,1741521036734,-10000.0,9.11e-05,2]
[355738332,1741521036744,-10000.0,9.11e-05,2]
[355738333,1741521036754,-10000.0,9.11e-05,2]
[355738334,1741521036763,-10000.0,9.11e-05,2]
[355738335,1741521036772,-10000.0,9.11e-05,2]
[355738336,1741521036782,-10000.0,9.11e-05,2]
[355738337,1741521036791,-10000.0,9.11e-05,2]
[355738338,1741521036801,-10000.0,9.11e-05,2]
[355738339,1741521036812,-10000.0,9.11e-05,2]
[355738340,1741521036822,-10000.0,9.11e-05,2]
[355738341,1741521036832,-8419.742514,9.11e-05,2]
[355738342,1741521036842,-151.0,9.11e-05,2]
[355738343,1741521036852,-151.0,9.11e-05,2]
[355738344,1741521036862,-151.0,9.11e-05,2]
[355738345,1741521036872,-164.341758,9.11e-05,2]
[355738346,1741521036882,-3810.156978,9.11e-05,2]
[355738347,1741521036892,-224.898912,9.11e-05,2]
[355738348,1741521036902,-3810.156978,9.11e-05,2]
[355738349,1741521036912,-224.898912,9.11e-05,2]
[355738350,1741521036921,-3810.156978,9.11e-05,2]
[355738351,1741521036930,-224.898912,9.11e-05,2]
[355738352,1741521036940,-224.898912,9.11e-05,2]
[355738353,1741521036950,-3810.156978,9.11e-05,2]
[355738354,1741521036959,-3810.156978,9.11e-05,2]
[355738355,1741521036968,-224.898912,9.11e-05,2]
[355738356,1741521036977,-151.0,9.11e-05,2]
[355738357,1741521037179,-151.0,9.11e-05,2]
[355738358,1741521037189,-151.0,9.11e-05,2]
[355738359,1741521037199,-224.898912,9.11e-05,2]
[355738360,1741521037210,-151.0,9.11e-05,2]
[355738361,1741521037220,-224.898912,9.11e-05,2]
[355738362,1741521037229,-224.898912,9.11e-05,2]
[355738363,1741521037239,-224.898912,9.11e-05,2]
[355738364,1741521037249,-224.898912,9.11e-05,2]
[355738365,1741521037259,-3810.156978,9.11e-05,2]
[355738366,1741521037268,-3810.156978,9.11e-05,2]
[355738367,1741521037278,-3810.156978,9.11e-05,2]
[355738368,1741521037288,-3810.156978,9.11e-05,2]
[355738369,1741521037297,-3810.156978,9.11e-05,2]
[355738370,1741521037307,-230.396779,9.11e-05,2]
[355738371,1741521037322,-230.396779,9.11e-05,2]
[355738372,1741521037341,-230.396779,9.11e-05,2]
[355738373,1741521037351,-230.396779,9.11e-05,2]
[355738374,1741521037361,-230.396779,9.11e-05,2]
[355738375,1741521037371,-230.396779,9.11e-05,2]
[355738376,1741521037380,-230.396779,9.11e-05,2]
[355738377,1741521037390,-463.939953,9.11e-05,2]
[355738378,1741521037400,-230.396779,9.11e-05,2]
[355738379,1741521037409,-463.939953,9.11e-05,2]
[355738380,1741521037419,-463.939953,9.11e-05,2]
[355738381,1741521037429,-463.939953,9.11e-05,2]
[355738382,1741521037439,-230.396779,9.11e-05,2]
[355738383,1741521037448,-463.939953,9.11e-05,2]
[355738384,1741521037458,-230.396779,9.11e-05,2]
[355738385,1741521037468,-463.939953,9.11e-05,2]
[355738386,1741521037477,-463.939953,9.11e-05,2]
[355738387,1741521037487,-463.939953,9.11e-05,2]
[355738388,1741521037498,-463.939953,9.11e-05,2]
[355738389,1741521037508,-463.939953,9.11e-05,2]
[355738390,1741521037518,-151.0,9.11e-05,2]
[355738391,1741521037528,-151.0,9.11e-05,2]
[355738392,1741521037538,-151.0,9.11e-05,2]
[355738393,1741521037548,-151.0,9.11e-05,2]
[355738394,1741521037557,-154.225563,9.11e-05,2]
[355738395,1741521037567,-151.0,9.11e-05,2]
[355738396,1741521037577,-151.0,9.11e-05,2]
[355738397,1741521037587,-151.0,9.11e-05,2]
[355738398,1741521037597,-151.0,9.11e-05,2]
[355738399,1741521037609,-151.0,9.11e-05,2]
[355738400,1741521037618,-151.0,9.11e-05,2]
[355738401,1741521037628,-151.0,9.11e-05,2]
[355738402,1741521037637,-151.0,9.11e-05,2]
[355738403,1741521037646,-151.0,9.11e-05,2]
[355738404,1741521037657,-179.040635,9.11e-05,2]
[355738405,1741521037670,-290.19853,9.11e-05,2]
[355738406,1741521037679,-290.19853,9.11e-05,2]
[355738407,1741521037689,-290.19853,9.11e-05,2]
[355738408,1741521037699,-290.19853,9.11e-05,2]
[355738409,1741521037708,-290.19853,9.11e-05,2]
[355738410,1741521037718,-290.19853,9.11e-05,2]
[355738411,1741521037727,-290.19853,9.11e-05,2]
[355738412,1741521037737,-290.19853,9.11e-05,2]
[355738413,1741521037747,-628.953742,9.11e-05,2]
[355738414,1741521037757,-628.953742,9.11e-05,2]
[355738415,1741521037766,-628.953742,9.11e-05,2]
[355738416,1741521037775,-628.953742,9.11e-05,2]
[355738417,1741521037785,-628.953742,9.11e-05,2]
[355738418,1741521037794,-628.953742,9.11e-05,2]
[355738419,1741521037804,-628.953742,9.11e-05,2]
[355738420,1741521037813,-628.953742,9.11e-05,2]
[355738421,1741521037823,-151.0,9.11e-05,2]
[355738422,1741521037832,-151.0,9.11e-05,2]
[355738423,1741521037842,-151.0,9.11e-05,2]
[355738424,1741521037851,-151.0,9.11e-05,2]
[355738425,1741521037861,-151.0,9.11e-05,2]
[355738426,1741521037871,-151.0,9.11e-05,2]
[355738427,1741521037880,-151.0,9.11e-05,2]
[355738428,1741521037890,-151.0,9.11e-05,2]
[355738429,1741521037899,-151.0,9.11e-05,2]
[355738431,1741521037908,-187.567599,9.11e-05,2]
[355738432,1741521037917,-151.0,9.11e-05,2]
[355738433,1741521037926,-151.0,9.11e-05,2]
[355738434,1741521037936,-151.0,9.11e-05,2]
[355738435,1741521037946,-162.027846,9.11e-05,2]
[355738436,1741521037955,-338.160186,9.11e-05,2]
[355738437,1741521037965,-338.160186,9.11e-05,2]
[355738438,1741521037975,-338.160186,9.11e-05,2]
[355738439,1741521037984,-338.160186,9.11e-05,2]
[355738440,1741521037994,-338.160186,9.11e-05,2]
[355738441,1741521038003,-338.160186,9.11e-05,2]
[355738442,1741521038013,-338.160186,9.11e-05,2]
[355738443,1741521038023,-338.160186,9.11e-05,2]
[355738444,1741521038033,-334.394274,9.11e-05,2]
[355738445,1741521038043,-334.394274,9.11e-05,2]
[355738446,1741521038052,-334.394274,9.11e-05,2]
[355738447,1741521038062,-334.394274,9.11e-05,2]
[355738448,1741521038073,-151.0,9.11e-05,2]
[355738449,1741521038082,-212.449597,9.11e-05,2]
[355738450,1741521038093,-151.0,9.11e-05,2]
[355738451,1741521038104,-151.0,9.11e-05,2]
[355738452,1741521038114,-334.394274,9.11e-05,2]
[355738453,1741521038125,-206.720751,9.11e-05,2]
[355738455,1741521038134,-334.394274,9.11e-05,2]
[355738456,1741521038144,-334.394274,9.11e-05,2]
[355738458,1741521038154,-334.394274,9.11e-05,2]
[355738459,1741521038164,-139713.51940123,9.11e-05,2]
[355738460,1741521038175,-391.8151334,9.115e-05,2]
[355738461,1741521038184,-150.0,9.139e-05,2]
[355738462,1741521038194,-1000.0,9.147e-05,2]
[355738463,1741521038204,-150.0,9.148e-05,2]
[355738464,1741521038213,-477.71224566,9.151e-05,2]
[355738465,1741521038222,-150.0,9.167e-05,2]
[355738467,1741521038231,-564.70733255,9.169e-05,2]
[355738469,1741521038241,-220.58145,9.177e-05,2]
[355738471,1741521038250,-220.58145,9.177e-05,2]
[355738473,1741521038259,-267.110816,9.177e-05,2]
[355738475,1741521038269,-484.983395,9.177e-05,2]
[355738477,1741521038279,-484.983395,9.177e-05,2]
[355738478,1741521038289,-151.0,9.177e-05,2]
[355738479,1741521038298,-208.889532,9.177e-05,2]
[355738480,1741521038307,-241.573998,9.177e-05,2]
[355738481,1741521038317,-151.0,9.177e-05,2]
[355738482,1741521038329,-208.889532,9.177e-05,2]
[355738483,1741521038338,-241.573998,9.177e-05,2]
[355738484,1741521038348,-151.0,9.177e-05,2]
[355738485,1741521038358,-151.0,9.177e-05,2]
[355738486,1741521038368,-151.0,9.177e-05,2]
[355738487,1741521038377,-151.0,9.177e-05,2]
[355738488,1741521038386,-285.942707,9.177e-05,2]
[355738489,1741521038395,-285.942707,9.177e-05,2]
[355738490,1741521038405,-151.0,9.177e-05,2]
[355738491,1741521038415,-34516.85,9.177e-05,2]
[355738492,1741521038425,-1000.0,9.183e-05,2]
[355738493,1741521038435,-349.0,9.186e-05,2]
[355738494,1741521038444,-349.0,9.186e-05,2]
[355738495,1741521038453,-242.246167,9.186e-05,2]
[355738496,1741521038463,-189.61562,9.186e-05,2]
[355738497,1741521038472,-189.61562,9.186e-05,2]
[355738498,1741521038481,-413.309956,9.186e-05,2]
[355738499,1741521038491,-413.309956,9.186e-05,2]
[355738500,1741521038500,-151.0,9.186e-05,2]
[355738501,1741521038510,-455.650652,9.186e-05,2]
[355738502,1741521038519,-455.650652,9.186e-05,2]
[355738503,1741521038529,-151.0,9.186e-05,2]
[355738504,1741521038539,-417.775845,9.186e-05,2]
[355738505,1741521038549,-417.775845,9.186e-05,2]
[355738506,1741521038558,-177.311011,9.186e-05,2]
[355738507,1741521038567,-177.311011,9.186e-05,2]
[355738508,1741521038577,-220.58145,9.186e-05,2]
[355738509,1741521038586,-220.58145,9.186e-05,2]
[355738510,1741521038595,-267.110816,9.186e-05,2]
[355738511,1741521038604,-151.0,9.186e-05,2]
[355738512,1741521038613,-151.0,9.186e-05,2]
[355738513,1741521038622,-151.0,9.186e-05,2]
[355738514,1741521038631,-228.503863,9.186e-05,2]
[355738515,1741521038641,-228.503863,9.186e-05,2]
[355738516,1741521038650,-420.948943,9.186e-05,2]
[355738517,1741521038661,-420.948943,9.186e-05,2]
[355738518,1741521038673,-223.052818,9.186e-05,2]
[355738519,1741521038682,-484.983395,9.186e-05,2]
[355738520,1741521038692,-484.983395,9.186e-05,2]
[355738521,1741521038701,-151.0,9.186e-05,2]
[355738523,1741521038713,-242.901403,9.186e-05,2]
[355738524,1741521038723,-208.889532,9.186e-05,2]
[355738525,1741521038732,-241.573998,9.186e-05,2]
[355738526,1741521038742,-151.0,9.186e-05,2]
[355738527,1741521038751,-208.889532,9.186e-05,2]
[355738528,1741521038761,-241.573998,9.186e-05,2]
[355738529,1741521038770,-151.0,9.186e-05,2]
[355738530,1741521038780,-271.593905,9.186e-05,2]
[355738531,1741521038789,-271.593905,9.186e-05,2]
[355738532,1741521038799,-151.0,9.186e-05,2]
[355738533,1741521038808,-151.0,9.186e-05,2]
[355738534,1741521038818,-193.903272,9.186e-05,2]
[355738535,1741521038828,-193.903272,9.186e-05,2]
[355738536,1741521038838,-151.0,9.186e-05,2]
[355738537,1741521038848,-285.942707,9.186e-05,2]
[355738538,1741521038859,-151.0,9.186e-05,2]
[355738539,1741521038868,-151.0,9.186e-05,2]
[355738540,1741521038878,-285.942707,9.186e-05,2]
[355738541,1741521038888,-151.0,9.186e-05,2]
[355738542,1741521038897,-151.0,9.186e-05,2]
[355738543,1741521038907,-151.0,9.186e-05,2]
[355738544,1741521038917,-151.0,9.186e-05,2]
[355738545,1741521038927,-229.835295,9.186e-05,2]
[355738546,1741521038944,-151.0,9.186e-05,2]
[355738547,1741521038954,-229.835295,9.186e-05,2]
[355738548,1741521038963,-519.604178,9.186e-05,2]
[355738549,1741521038973,-519.604178,9.186e-05,2]
[355738550,1741521038982,-151.0,9.186e-05,2]
[355738551,1741521038992,-535.55507,9.186e-05,2]
[355738552,1741521039001,-535.55507,9.186e-05,2]
[355738553,1741521039011,-525.386125,9.186e-05,2]
[355738554,1741521039020,-525.386125,9.186e-05,2]
[355738555,1741521039030,-237.650827,9.186e-05,2]
[355738556,1741521039041,-151.0,9.186e-05,2]
[355738557,1741521039050,-630.479291,9.186e-05,2]
[355738558,1741521039163,-237.650827,9.186e-05,2]
[355738559,1741521039174,-630.479291,9.186e-05,2]
[355738560,1741521039184,-940.075125,9.186e-05,2]
[355738561,1741521039194,-940.075125,9.186e-05,2]
[355738562,1741521039204,-151.0,9.186e-05,2]
[355738563,1741521039214,-493.153444,9.186e-05,2]
[355738564,1741521039224,-493.153444,9.186e-05,2]
[355738565,1741521039234,-1999.263306,9.186e-05,2]
[355738566,1741521039243,-1999.263306,9.186e-05,2]
[355738567,1741521039253,-661.621773,9.186e-05,2]
[355738568,1741521039264,-819.019746,9.186e-05,2]
[355738569,1741521039274,-661.621773,9.186e-05,2]
[355738570,1741521039284,-819.019746,9.186e-05,2]
[355738571,1741521039294,-167.436779,9.186e-05,2]
[355738572,1741521039303,-167.436779,9.186e-05,2]
[355738573,1741521039313,-237.821055,9.186e-05,2]
[355738574,1741521039323,-151.0,9.186e-05,2]
[355738575,1741521039333,-237.821055,9.186e-05,2]
[355738576,1741521039342,-151.0,9.186e-05,2]
[355738577,1741521039351,-310.081406,9.186e-05,2]
[355738578,1741521039363,-151.0,9.186e-05,2]
[355738579,1741521039372,-310.081406,9.186e-05,2]
[355738580,1741521039382,-10000.0,9.186e-05,2]
[355738581,1741521039392,-10000.0,9.186e-05,2]
[355738582,1741521039401,-243.87159259,9.186e-05,2]
[355738583,1741521039428,-3566.28538541,9.186e-05,2]
[355738584,1741521039438,-224.898912,9.186e-05,2]
[355738585,1741521039447,-196.700865,9.186e-05,2]
[355738586,1741521039457,-224.898912,9.186e-05,2]
[355738587,1741521039467,-3810.156978,9.186e-05,2]
[355738588,1741521039476,-230.396779,9.186e-05,2]
[355738589,1741521039491,-463.939953,9.186e-05,2]
[355738590,1741521039502,-230.396779,9.186e-05,2]
[355738591,1741521039512,-463.939953,9.186e-05,2]
[355738592,1741521039523,-151.0,9.186e-05,2]
[355738593,1741521039533,-188.582962,9.186e-05,2]
[355738594,1741521039543,-151.0,9.186e-05,2]
[355738595,1741521039553,-290.19853,9.186e-05,2]
[355738596,1741521039564,-290.19853,9.186e-05,2]
[355738597,1741521039574,-628.953742,9.186e-05,2]
[355738598,1741521039584,-628.953742,9.186e-05,2]
[355738599,1741521039594,-151.0,9.186e-05,2]
[355738600,1741521039603,-151.0,9.186e-05,2]
[355738601,1741521039613,-338.160186,9.186e-05,2]
[355738602,1741521039622,-338.160186,9.186e-05,2]
[355738603,1741521039631,-334.394274,9.186e-05,2]
[355738604,1741521039641,-334.394274,9.186e-05,2]
[355738605,1741521039650,-1862.0,9.188e-05,2]
[355738606,1741521039663,-4990.643441,9.188e-05,2]
[355738607,1741521039673,-12419.2355487,9.188e-05,2]
[355738608,1741521039682,-500.0,9.19e-05,2]
[355738609,1741521039766,-155.431524,9.191e-05,2]
[355738610,1741521039776,-155.431524,9.191e-05,2]
[355738611,1741521039785,-155.431524,9.191e-05,2]
[355738612,1741521039794,-155.431524,9.191e-05,2]
[355738613,1741521039804,-349.0,9.191e-05,2]
[355738614,1741521039814,-349.0,9.191e-05,2]
[355738615,1741521039823,-189.61562,9.191e-05,2]
[355738616,1741521039833,-189.61562,9.191e-05,2]
[355738617,1741521039843,-413.309956,9.191e-05,2]
[355738618,1741521039852,-413.309956,9.191e-05,2]
[355738619,1741521039863,-151.0,9.191e-05,2]
[355738620,1741521039872,-455.650652,9.191e-05,2]
[355738621,1741521039882,-455.650652,9.191e-05,2]
[355738622,1741521039892,-203.470889,9.191e-05,2]
[355738623,1741521039901,-417.775845,9.191e-05,2]
[355738624,1741521039910,-417.775845,9.191e-05,2]
[355738625,1741521039920,-177.311011,9.191e-05,2]
[355738626,1741521039930,-177.311011,9.191e-05,2]
[355738627,1741521039939,-151.0,9.191e-05,2]
[355738628,1741521039949,-151.0,9.191e-05,2]
[355738629,1741521039959,-424.05292,9.191e-05,2]
[355738630,1741521039970,-424.05292,9.191e-05,2]
[355738631,1741521039979,-220.58145,9.191e-05,2]
[355738633,1741521039988,-220.581448,9.191e-05,2]
[355738634,1741521039997,-267.110816,9.191e-05,2]
[355738635,1741521040007,-151.0,9.191e-05,2]
[355738636,1741521040016,-228.503863,9.191e-05,2]
[355738637,1741521040026,-228.503863,9.191e-05,2]
[355738638,1741521040035,-484.983395,9.191e-05,2]
[355738639,1741521040044,-484.983395,9.191e-05,2]
[355738640,1741521040053,-151.0,9.191e-05,2]
[355738641,1741521040062,-208.889532,9.191e-05,2]
[355738642,1741521040071,-241.573998,9.191e-05,2]
[355738643,1741521040080,-151.0,9.191e-05,2]
[355738645,1741521040090,-208.889532,9.191e-05,2]
[355738646,1741521040100,-241.573998,9.191e-05,2]
[355738647,1741521040110,-151.0,9.191e-05,2]
[355738648,1741521040119,-271.593905,9.191e-05,2]
[355738649,1741521040129,-271.593905,9.191e-05,2]
[355738650,1741521040138,-151.0,9.191e-05,2]
[355738651,1741521040148,-151.0,9.191e-05,2]
[355738652,1741521040158,-193.903272,9.191e-05,2]
[355738653,1741521040167,-193.903272,9.191e-05,2]
[355738654,1741521040176,-151.0,9.191e-05,2]
[355738656,1741521040186,-285.942707,9.191e-05,2]
[355738658,1741521040195,-151.0,9.191e-05,2]
[355738659,1741521040205,-151.0,9.191e-05,2]
[355738661,1741521040214,-285.942707,9.191e-05,2]
[355738663,1741521040223,-151.0,9.191e-05,2]
[355738665,1741521040232,-151.0,9.191e-05,2]
[355738666,1741521040241,-151.0,9.191e-05,2]
[355738668,1741521040251,-151.0,9.191e-05,2]
[355738669,1741521040260,-229.835295,9.191e-05,2]
[355738670,1741521040269,-151.0,9.191e-05,2]
[355738671,1741521040278,-229.835295,9.191e-05,2]
[355738672,1741521040287,-519.604178,9.191e-05,2]
[355738673,1741521040296,-519.604178,9.191e-05,2]
[355738674,1741521040305,-151.0,9.191e-05,2]
[355738675,1741521040314,-535.55507,9.191e-05,2]
[355738676,1741521040328,-535.55507,9.191e-05,2]
[355738677,1741521040337,-525.386125,9.191e-05,2]
[355738678,1741521040346,-525.386125,9.191e-05,2]
[355738679,1741521040357,-237.650827,9.191e-05,2]
[355738680,1741521040367,-154.978436,9.191e-05,2]
[355738681,1741521040376,-630.479291,9.191e-05,2]
[355738682,1741521040386,-237.650827,9.191e-05,2]
[355738683,1741521040395,-630.479291,9.191e-05,2]
[355738684,1741521040404,-940.075125,9.191e-05,2]
[355738685,1741521040413,-940.075125,9.191e-05,2]
[355738686,1741521040422,-151.0,9.191e-05,2]
[355738687,1741521040431,-493.153444,9.191e-05,2]
[355738688,1741521040440,-493.153444,9.191e-05,2]
[355738689,1741521040450,-1999.263306,9.191e-05,2]
[355738690,1741521040459,-1999.263306,9.191e-05,2]
[355738691,1741521040469,-661.621773,9.191e-05,2]
[355738692,1741521040478,-819.019746,9.191e-05,2]
[355738693,1741521040487,-661.621773,9.191e-05,2]
[355738694,1741521040496,-819.019746,9.191e-05,2]
[355738695,1741521040506,-167.436779,9.191e-05,2]
[355738696,1741521040515,-167.436779,9.191e-05,2]
[355738697,1741521040525,-237.821055,9.191e-05,2]
[355738698,1741521040536,-151.0,9.191e-05,2]
[355738699,1741521040546,-237.821055,9.191e-05,2]
[355738700,1741521040555,-151.0,9.191e-05,2]
[355738701,1741521040565,-310.081406,9.191e-05,2]
[355738702,1741521040575,-151.0,9.191e-05,2]
[355738703,1741521040584,-310.081406,9.191e-05,2]
[355738704,1741521040594,-10000.0,9.191e-05,2]
[355738705,1741521040603,-10000.0,9.191e-05,2]
[355738706,1741521040614,-224.898912,9.191e-05,2]
[355738707,1741521040623,-3810.156978,9.191e-05,2]
[355738708,1741521040633,-224.898912,9.191e-05,2]
[355738709,1741521040642,-3810.156978,9.191e-05,2]
[355738710,1741521040651,-151.0,9.191e-05,2]
[355738711,1741521040661,-211577.38473879,9.192e-05,2]
[355738712,1741521040675,-40000.0,9.192e-05,2]
[355738713,1741521040684,-155.431524,9.192e-05,2]
[355738714,1741521040694,-155.43153,9.192e-05,2]
[355738715,1741521040704,-349.0,9.192e-05,2]
[355738716,1741521040714,-349.0,9.192e-05,2]
[355738717,1741521040723,-349.0,9.192e-05,2]
[355738718,1741521040732,-349.0,9.192e-05,2]
[355738719,1741521040742,-189.61562,9.192e-05,2]
[355738720,1741521040757,-189.61562,9.192e-05,2]
[355738721,1741521040766,-189.61562,9.192e-05,2]
[355738722,1741521040776,-189.61562,9.192e-05,2]
[355738723,1741521040785,-413.309956,9.192e-05,2]
[355738724,1741521040795,-413.309956,9.192e-05,2]
[355738725,1741521040804,-413.309956,9.192e-05,2]
[355738726,1741521040813,-413.309956,9.192e-05,2]
[355738727,1741521040823,-151.0,9.192e-05,2]
[355738728,1741521040832,-151.0,9.192e-05,2]
[355738729,1741521040841,-455.650652,9.192e-05,2]
[355738730,1741521040850,-455.650652,9.192e-05,2]
[355738731,1741521040860,-455.650652,9.192e-05,2]
[355738732,1741521040869,-455.650652,9.192e-05,2]
[355738733,1741521040879,-417.775845,9.192e-05,2]
[355738734,1741521040888,-417.775845,9.192e-05,2]
[355738735,1741521040897,-177.311011,9.192e-05,2]
[355738736,1741521040906,-177.311011,9.192e-05,2]
[355738737,1741521040915,-177.311011,9.192e-05,2]
[355738738,1741521040924,-177.311011,9.192e-05,2]
[355738739,1741521040934,-151.0,9.192e-05,2]
[355738740,1741521040943,-151.0,9.192e-05,2]
[355738741,1741521040953,-151.0,9.192e-05,2]
[355738742,1741521040962,-177.855731,9.192e-05,2]
[355738743,1741521040972,-424.05292,9.192e-05,2]
[355738744,1741521040982,-424.05292,9.192e-05,2]
[355738745,1741521040991,-424.05292,9.192e-05,2]
[355738746,1741521041000,-424.05292,9.192e-05,2]
[355738747,1741521041010,-83427.32674335,9.192e-05,2]
[355738748,1741521041020,-267.110814,9.192e-05,2]
[355738749,1741521041029,-151.0,9.192e-05,2]
[355738750,1741521041039,-151.0,9.192e-05,2]
[355738751,1741521041048,-151.0,9.192e-05,2]
[355738752,1741521041057,-151.0,9.192e-05,2]
[355738753,1741521041066,-151.0,9.192e-05,2]
[355738754,1741521041076,-228.503863,9.192e-05,2]
[355738755,1741521041085,-228.503864,9.192e-05,2]
[355738756,1741521041094,-420.948943,9.192e-05,2]
[355738757,1741521041103,-420.948943,9.192e-05,2]
[355738758,1741521041114,-420.948943,9.192e-05,2]
[355738759,1741521041123,-420.948943,9.192e-05,2]
[355738760,1741521041132,-223.052818,9.192e-05,2]
[355738761,1741521041142,-223.052818,9.192e-05,2]
[355738762,1741521041151,-484.983395,9.192e-05,2]
[355738764,1741521041161,-484.983395,9.192e-05,2]
[355738766,1741521041170,-484.983395,9.192e-05,2]
[355738768,1741521041181,-484.983395,9.192e-05,2]
[355738769,1741521041194,-151.0,9.192e-05,2]
[355738770,1741521041204,-208.889532,9.192e-05,2]
[355738771,1741521041213,-208.889532,9.192e-05,2]
[355738772,1741521041222,-241.573998,9.192e-05,2]
[355738773,1741521041231,-241.573998,9.192e-05,2]
[355738774,1741521041241,-151.0,9.192e-05,2]
[355738775,1741521041250,-151.0,9.192e-05,2]
[355738776,1741521041259,-208.889532,9.192e-05,2]
[355738777,1741521041268,-208.889532,9.192e-05,2]
[355738778,1741521041278,-241.573998,9.192e-05,2]
[355738779,1741521041287,-241.573998,9.192e-05,2]
[355738780,1741521041297,-222.016026,9.192e-05,2]
[355738781,1741521041306,-271.593905,9.192e-05,2]
[355738782,1741521041316,-271.593905,9.192e-05,2]
[355738783,1741521041326,-271.593905,9.192e-05,2]
[355738784,1741521041335,-271.593905,9.192e-05,2]
[355738785,1741521041344,-151.0,9.192e-05,2]
[355738786,1741521041354,-165.928807,9.192e-05,2]
[355738787,1741521041363,-151.0,9.192e-05,2]
[355738788,1741521041373,-192.369657,9.192e-05,2]
[355738789,1741521041382,-193.903272,9.192e-05,2]
[355738790,1741521041391,-193.903272,9.192e-05,2]
[355738791,1741521041401,-193.903272,9.192e-05,2]
[355738792,1741521041410,-193.903272,9.192e-05,2]
[355738793,1741521041419,-151.0,9.192e-05,2]
[355738794,1741521041429,-151.0,9.192e-05,2]
[355738795,1741521041438,-285.942707,9.192e-05,2]
[355738796,1741521041447,-285.942707,9.192e-05,2]
[355738797,1741521041457,-151.0,9.192e-05,2]
[355738798,1741521041467,-151.0,9.192e-05,2]
[355738799,1741521041476,-151.0,9.192e-05,2]
[355738800,1741521041485,-151.0,9.192e-05,2]
[355738801,1741521041495,-285.942707,9.192e-05,2]
[355738802,1741521041504,-285.942707,9.192e-05,2]
[355738803,1741521041514,-151.0,9.192e-05,2]